bitfinex-derivatives/quotes_ETHF0:USTF0_20241005
["timestamp","ask_amount","ask_price","bid_price","bid_amount"]
[1728111919703,0.89,2424.0,2423.9,2.31703452]
[1728111920200,0.89,2424.0,2423.9,0.98289789]
[1728111920404,1.17876,2424.0,2423.9,0.98289789]
[1728111920904,0.89,2424.0,2423.9,0.98289789]
[1728111921216,0.89,2424.0,2423.9,1.8953423]
[1728111921506,0.89,2424.0,2423.9,1.39649789]
[1728111921909,1.17876,2424.0,2423.9,1.39649789]
[1728111922108,0.89,2424.0,2423.9,1.39649789]
[1728111923205,0.89,2424.0,2423.9,1.39625575]
[1728111923206,1.17876,2424.0,2423.9,1.39625575]
[1728111923802,0.89,2424.0,2423.9,1.39625575]
[1728111924503,1.17875,2424.1,2423.9,1.39625575]
[1728111924704,1.17875,2424.1,2424.0,0.57015575]
[1728111924904,1.54858,2424.5,2424.0,5.60766921]
[1728111924905,0.8268,2424.5,2424.0,5.60766921]
[1728111925220,0.89,2424.5,2424.1,2.28046921]
[1728111925511,0.3862,2424.7,2424.5,0.28869]
[1728111925698,1.08206,2424.9,2424.6,2.07253575]
[1728111925901,0.89,2424.9,2424.7,0.85826613]
[1728111926104,0.89,2424.9,2424.8,0.56959613]
[1728111926610,1.17865,2424.9,2424.8,0.56936519]
[1728111928309,1.17865,2424.9,2424.6,1.2137]
[1728111928511,1.17865,2424.9,2424.7,0.5691822]
[1728111928512,0.89,2424.8,2424.7,0.5691822]
[1728111929010,1.17866,2424.8,2424.7,4.6931822]
[1728111929905,1.17866,2424.8,2424.7,4.124]
[1728111930109,1.17866,2424.8,2424.7,4.69304334]
[1728111930310,1.17866,2424.8,2424.7,0.56904334]
[1728111930513,0.89,2424.8,2424.7,0.56904334]
[1728111930807,1.17866,2424.8,2424.7,4.69304334]
[1728111931014,1.17866,2424.8,2424.7,0.56904334]
[1728111931707,1.17866,2424.8,2424.6,1.2137]
[1728111931899,0.89,2424.7,2424.6,1.2137]
[1728111932106,0.89,2424.7,2424.6,1.78263165]
[1728111932415,1.17868,2424.7,2424.6,5.90663165]
[1728111932610,1.17868,2424.7,2424.6,1.78263165]
[1728111932802,0.89,2424.7,2424.6,1.78263165]
[1728111933315,1.2787,2424.7,2424.6,1.78263165]
[1728111934006,1.2787,2424.7,2424.6,0.96245549]
[1728111934007,1.56738,2424.7,2424.6,0.96245549]
[1728111934213,1.56738,2424.7,2424.6,0.3936]
[1728111935309,1.2787,2424.7,2424.5,3.2078]
[1728111935505,0.28869,2424.6,2424.5,3.2078]
[1728111935813,0.28869,2424.6,2424.5,3.77670997]
[1728111937012,0.28869,2424.6,2424.5,0.56890997]
[1728111937211,0.28869,2424.6,2424.4,0.69391]
[1728111937415,0.89,2424.5,2424.4,0.69391]
[1728111937605,0.89,2424.5,2424.4,1.26280962]
[1728111940008,0.89,2424.5,2424.4,0.85760962]
[1728111940206,0.89,2424.5,2424.4,0.28871]
[1728111940414,0.89,2424.5,2424.4,0.85760537]
[1728111944013,0.89,2424.5,2424.4,0.85773971]
[1728111944813,0.89,2424.5,2424.3,3.2078]
[1728111945008,0.89,2424.5,2424.1,0.38474]
[1728111945009,0.28873,2424.3,2424.1,0.38474]
[1728111945212,0.28873,2424.3,2424.0,1.1967]
[1728111945213,0.28875,2424.1,2424.0,1.1967]
[1728111945523,0.89,2424.1,2424.0,0.96002195]
[1728111945824,0.89,2424.1,2424.0,1.24878195]
[1728111946913,0.89,2424.1,2424.0,1.24887002]
[1728111947622,1.3148,2424.1,2424.0,1.24887002]
[1728111951018,1.3148,2424.1,2424.0,0.3908]
[1728111951213,1.3148,2424.1,2423.9,0.70086]
[1728111951214,1.60355,2424.1,2423.9,0.70086]
[1728111951516,1.60355,2424.1,2423.9,0.28876]
[1728111952725,1.3148,2424.1,2424.0,0.28876]
[1728111952921,1.3148,2424.1,2423.8,4.4389]
[1728111953225,1.60355,2424.1,2423.9,0.85806697]
[1728111953426,1.3148,2424.1,2424.0,0.28876]
[1728111956227,1.60355,2424.1,2423.9,0.28876]
[1728111956420,0.28876,2424.0,2423.8,4.72767]
[1728111956623,0.89,2423.9,2423.8,4.72768]
[1728111956814,0.89,2423.9,2423.8,5.29698604]
[1728111957018,0.89,2423.9,2423.8,4.72768]
[1728111957418,0.89,2423.9,2423.8,5.29698979]
[1728111957617,0.89,2423.9,2423.8,4.88528979]
[1728111957816,0.89,2423.9,2423.8,4.31598]
[1728111958527,0.89,2423.9,2423.8,3.92218]
[1728111959131,0.89,2423.9,2423.8,3.2078]
[1728111959527,1.17877,2423.9,2423.8,3.2078]
[1728111960030,0.89,2423.9,2423.8,3.2078]
[1728111960826,0.89,2423.9,2423.8,3.49658]
[1728111962923,0.89,2423.9,2423.8,3.2078]
[1728111963320,1.17877,2423.9,2423.8,3.2078]
[1728111963933,0.89,2423.9,2423.8,3.2078]
[1728111966028,1.17877,2423.9,2423.8,3.2078]
[1728111966733,0.89,2423.9,2423.8,3.2078]
[1728111966933,1.17877,2423.9,2423.8,3.2078]
[1728111968928,5.0156,2423.9,2423.6,0.4058]
[1728111969233,0.89,2423.7,2423.6,0.4058]
[1728111969426,1.1788,2423.7,2423.6,0.4058]
[1728111969631,0.89,2423.7,2423.6,0.4058]
[1728111971131,0.89,2423.7,2423.5,3.90571]
[1728111972826,1.1788,2423.7,2423.5,3.90571]
[1728111973837,1.1788,2423.7,2423.5,3.6169]
[1728111974652,1.1788,2423.7,2423.5,3.90572]
[1728111975150,0.89,2423.7,2423.5,3.6169]
[1728111975350,1.1788,2423.7,2423.5,3.90571]
[1728111975844,0.89,2423.7,2423.6,0.28881]
[1728111976152,0.89,2423.7,2423.5,3.90571]
[1728111976646,1.3173,2423.8,2423.6,0.28881]
[1728111976844,1.60609,2423.8,2423.6,0.28881]
[1728111977447,1.3173,2423.8,2423.5,3.90571]
[1728111977647,1.60609,2423.8,2423.5,3.90571]
[1728111978449,1.60609,2423.8,2423.6,0.28881]
[1728111979150,0.2888,2423.7,2423.5,3.2078]
[1728111979347,0.89,2423.6,2423.5,3.2078]
[1728111979757,0.89,2423.6,2423.5,3.49662]
[1728111980050,1.17881,2423.6,2423.5,3.2078]
[1728111980558,0.89,2423.6,2423.5,3.2078]
[1728111980748,1.17881,2423.6,2423.5,3.2078]
[1728111981149,0.89,2423.6,2423.5,3.2078]
[1728111983760,0.89,2423.6,2423.4,0.28883]
[1728111984455,0.89,2423.6,2423.5,0.28882]
[1728111988553,0.89,2423.6,2423.4,3.2078]
[1728111988755,0.89,2423.6,2423.4,3.49662]
[1728111989352,0.89,2423.6,2423.5,0.570181]
[1728111989548,0.89,2423.6,2423.5,0.28882]
[1728111989755,0.89,2423.6,2423.5,0.8589998]
[1728111991356,0.89,2423.6,2423.5,0.5701798]
[1728111991562,1.17881,2423.6,2423.5,0.5701798]
[1728111991861,0.89,2423.6,2423.5,0.5701798]
[1728111992948,0.89,2423.6,2423.4,3.49663]
[1728111993153,0.89,2423.6,2423.5,0.57069348]
[1728111993550,0.89,2423.6,2423.5,0.57071789]
[1728111993960,1.17881,2423.6,2423.5,0.57071789]
[1728111995258,0.89,2423.6,2423.5,0.57071789]
[1728111995560,1.17881,2423.6,2423.5,0.57071789]
[1728111996354,1.17881,2423.6,2423.4,3.2078]
[1728111996556,0.4082,2423.5,2423.4,3.49663]
[1728111996762,0.4082,2423.5,2423.4,4.98093074]
[1728111998867,0.4082,2423.5,2423.4,4.69210074]
[1728111999066,0.4082,2423.5,2423.4,4.98093074]
[1728111999267,0.4082,2423.5,2423.4,4.69210074]
[1728111999865,0.4082,2423.5,2423.4,3.49663]
[1728112000066,0.4082,2423.5,2423.4,4.41166401]
[1728112000365,0.4082,2423.5,2423.4,4.69473027]
[1728112000759,0.4082,2423.5,2423.4,4.98356027]
[1728112000963,0.4082,2423.5,2423.4,4.69473027]
[1728112001764,0.4082,2423.5,2423.4,4.98356027]
[1728112003071,0.4082,2423.5,2423.4,4.98389962]
[1728112005666,0.4082,2423.5,2423.4,6.12795019]
[1728112005861,0.4082,2423.5,2423.4,4.98389962]
[1728112006968,0.89,2423.6,2423.4,4.98389962]
[1728112007172,0.89,2423.6,2423.5,1.48726962]
[1728112009581,0.89,2423.6,2423.4,3.49663]
[1728112009781,0.89,2423.6,2423.5,1.48740748]
[1728112011679,1.17881,2423.6,2423.5,1.48740748]
[1728112013277,1.17881,2423.6,2423.5,0.5720798]
[1728112013470,1.17881,2423.6,2423.5,2.05997075]
[1728112013871,1.17881,2423.6,2423.5,1.48789095]
[1728112014688,0.89,2423.6,2423.5,1.48789095]
[1728112015067,1.95351,2423.6,2423.5,1.48789095]
[1728112015579,1.6647,2423.6,2423.5,1.48789095]
[1728112016178,1.6647,2423.6,2423.4,0.28883]
[1728112016367,1.6647,2423.6,2423.5,1.4878642]
[1728112019077,1.95351,2423.6,2423.5,1.4878642]
[1728112019381,1.95351,2423.6,2423.3,1.46724]
[1728112019580,1.95351,2423.6,2423.5,0.57227033]
[1728112019775,1.95351,2423.6,2423.5,1.48790286]
[1728112022190,1.6647,2423.6,2423.5,1.48787437]
[1728112026372,1.95351,2423.6,2423.5,1.48787437]
[1728112028391,1.95351,2423.6,2423.4,0.4082]
[1728112028591,1.95351,2423.6,2423.5,1.48829266]
[1728112032086,1.95351,2423.6,2423.4,0.4082]
[1728112032087,0.28882,2423.5,2423.4,0.4082]
[1728112032390,0.28882,2423.5,2423.4,3.38493028]
[1728112033794,1.95352,2423.6,2423.4,3.38493028]
[1728112034091,1.95352,2423.6,2423.5,1.48837663]
[1728112034895,1.95352,2423.6,2423.4,1.89655365]
[1728112035189,1.95352,2423.6,2423.5,2.97661456]
[1728112035396,1.95352,2423.6,2423.5,4.46492635]
[1728112035595,1.95352,2423.6,2423.5,1.48831179]
[1728112038193,1.95352,2423.6,2423.5,1.48803148]
[1728112039192,1.95352,2423.6,2423.5,0.5723198]
[1728112040786,6.07992,2423.6,2423.5,0.5723198]
[1728112041390,5.7911,2423.6,2423.3,0.7934]
[1728112041591,1.06351,2423.6,2423.5,0.572344]
[1728112041791,1.95351,2423.6,2423.5,0.572344]
[1728112042097,6.07991,2423.6,2423.5,0.572344]
[1728112044296,0.28885,2423.2,2423.1,3.6143]
[1728112044487,0.28885,2423.2,2423.1,5.10258163]
[1728112044488,1.17885,2423.2,2423.1,5.10258163]
[1728112044892,1.17885,2423.2,2423.1,4.69616096]
[1728112045401,5.30605,2423.2,2423.1,4.69616096]
[1728112047792,5.30605,2423.2,2423.1,1.48836096]
[1728112048194,5.72795,2423.2,2423.1,0.57244652]
[1728112048401,5.72795,2423.2,2423.1,3.78024652]
[1728112050190,0.28889,2422.9,2422.8,0.8067]
[1728112050394,1.17889,2422.9,2422.8,2.29370058]
[1728112050599,1.17889,2422.9,2422.8,1.3786233]
[1728112050798,0.89,2422.9,2422.8,1.3786233]
[1728112050998,1.14405,2423.2,2422.8,6.42091021]
[1728112050999,0.4219,2423.2,2422.8,6.42091021]
[1728112051200,0.89,2423.3,2423.1,0.28886]
[1728112051395,1.17884,2423.3,2423.2,1.7799233]
[1728112051696,0.89,2423.3,2423.2,1.77966759]
[1728112052107,1.3024,2423.3,2423.2,1.77966759]
[1728112052401,1.59124,2423.3,2423.2,1.77966759]
[1728112052795,1.59124,2423.3,2423.2,1.37886759]
[1728112053306,1.59124,2423.3,2423.2,0.8072]
[1728112053802,1.59124,2423.3,2423.2,1.3788361]
[1728112054196,5.4288,2423.3,2423.0,3.6086]
[1728112054402,0.89,2423.1,2423.0,3.6086]
[1728112054796,0.89,2423.1,2423.0,4.18024187]
[1728112055199,1.17887,2423.1,2423.0,3.77944187]
[1728112056805,1.17887,2423.1,2423.0,0.57164187]
[1728112057200,0.28888,2423.0,2422.9,0.8059]
[1728112057403,0.28888,2423.0,2422.5,3.2078]
[1728112057404,0.4034,2423.0,2422.5,3.2078]
[1728112057599,0.89,2422.7,2422.6,2.66266958]
[1728112057804,0.89,2422.7,2422.6,1.74791465]
[1728112058010,0.89,2422.7,2422.6,2.6626581]
[1728112059112,0.89,2422.7,2422.6,1.74791465]
[1728112059507,1.2978,2422.7,2422.6,1.74791465]
[1728112059708,1.2978,2422.7,2422.6,1.34881465]
[1728112059709,1.58671,2422.7,2422.6,1.34881465]
[1728112061024,1.58671,2422.7,2422.6,0.7771]
[1728112061413,0.8168,2422.9,2422.6,0.7771]
[1728112061714,0.89,2422.8,2422.6,1.06602]
[1728112061915,0.89,2422.8,2422.7,0.70861]
[1728112062426,0.89,2422.8,2422.7,0.4197]
[1728112064225,0.89,2422.8,2422.7,0.70861]
[1728112064426,0.89,2422.8,2422.7,0.4197]
[1728112067427,0.89,2422.8,2422.7,0.70861]
[1728112067727,0.69096,2423.2,2422.9,0.28889]
[1728112068021,1.17885,2423.3,2423.1,0.28887]
[1728112068226,1.17885,2423.3,2423.2,0.4102]
[1728112068227,1.17884,2423.3,2423.2,0.4102]
[1728112075330,0.89,2423.3,2423.0,0.7909]
[1728112075536,0.89,2423.1,2423.0,1.1987]
[1728112075730,0.89,2423.1,2423.0,1.76959823]
[1728112077529,0.89,2423.1,2423.0,1.1987]
[1728112077725,0.4085,2423.1,2422.9,0.28888]
[1728112077930,0.89,2423.2,2423.0,1.81514782]
[1728112078134,1.17886,2423.2,2423.0,1.2444]
[1728112079934,0.89,2423.2,2423.0,1.2444]
[1728112080129,0.28887,2423.1,2423.0,1.2444]
[1728112080328,0.89,2423.2,2423.0,1.81522931]
[1728112080532,0.28887,2423.1,2423.0,1.2444]
[1728112080735,0.28887,2423.1,2423.0,1.81523134]
[1728112080928,0.89,2423.2,2423.0,1.81523134]
[1728112081129,1.17886,2423.2,2423.0,1.2444]
[1728112081626,0.28887,2423.1,2423.0,1.2444]
[1728112081833,0.28887,2423.1,2423.0,1.81517126]
[1728112082034,0.89,2423.2,2423.0,1.41977126]
[1728112082334,0.28888,2423.0,2422.8,0.4102]
[1728112082530,0.89,2422.9,2422.8,0.4102]
[1728112082840,1.2819,2422.9,2422.8,1.8943302]
[1728112083134,1.2819,2422.9,2422.8,4.8263]
[1728112083337,1.2819,2422.9,2422.8,6.31051048]
[1728112084538,1.2819,2422.9,2422.8,5.10221048]
[1728112084738,1.2819,2422.9,2422.8,5.39111048]
[1728112085737,1.2819,2422.9,2422.8,2.18331048]
[1728112086527,1.2819,2422.9,2422.8,0.2889]
[1728112086734,1.2819,2422.9,2422.8,1.77386312]
[1728112086935,1.2819,2422.9,2422.8,1.48496312]
[1728112087130,1.57079,2422.9,2422.8,1.48496312]
[1728112087535,1.2819,2422.9,2422.8,1.77386312]
[1728112092236,1.2819,2422.9,2422.8,1.48496312]
[1728112092637,1.2819,2422.9,2422.8,1.77386312]
[1728112093236,1.5708,2422.9,2422.7,4.30671]
[1728112093437,1.2819,2422.9,2422.8,1.48592304]
[1728112094236,1.97179,2422.9,2422.8,1.48592304]
[1728112095542,1.97179,2422.9,2422.8,0.57150886]
[1728112096638,1.6829,2422.9,2422.5,0.7854]
[1728112096839,0.89,2422.7,2422.6,0.91456928]
[1728112097033,1.17891,2422.7,2422.6,0.91456928]
[1728112097238,1.17891,2422.7,2422.6,0.57163069]
[1728112097947,0.89,2422.7,2422.6,0.57163069]
[1728112098547,1.17891,2422.7,2422.6,0.57163069]
[1728112099149,0.89,2422.7,2422.6,0.57163069]
[1728112099847,0.89,2422.7,2422.5,0.28894]
[1728112100047,0.69391,2422.8,2422.5,0.28894]
[1728112100048,1.2873,2422.6,2422.5,0.28894]
[1728112100241,1.2873,2422.6,2422.5,0.86050293]
[1728112102240,1.2873,2422.6,2422.5,0.57156293]
[1728112102849,1.98753,2422.6,2422.5,0.57156293]
[1728112103044,1.98753,2422.6,2422.3,0.8008]
[1728112103256,1.98753,2422.6,2422.5,0.5714871]
[1728112103945,6.11553,2422.6,2422.5,0.57145991]
[1728112104848,6.11553,2422.6,2422.1,3.6878]
[1728112105051,0.89,2422.4,2422.2,1.77466874]
[1728112105245,0.89,2422.4,2422.3,0.57142259]
[1728112105643,1.17895,2422.4,2422.3,0.57142259]
[1728112105946,0.89,2422.4,2422.3,0.57142259]
[1728112106352,1.17896,2422.4,2422.1,3.49678]
[1728112106655,0.4183,2422.3,2422.2,0.57138337]
[1728112107650,0.70726,2422.3,2422.2,0.57138337]
[1728112108250,0.70726,2422.3,2422.1,3.2078]
[1728112108447,0.89,2422.2,2422.1,3.2078]
[1728112110254,1.2799,2422.2,2422.1,3.2078]
[1728112112456,1.2799,2422.2,2422.0,0.69379]
[1728112112657,1.2799,2422.2,2422.0,0.4048]
[1728112114153,1.2799,2422.2,2422.0,0.6938]
[1728112114347,0.3899,2422.2,2422.0,0.4048]
[1728112114556,7.3938,2422.8,2422.6,0.28893]
[1728112114848,0.096,2423.0,2422.7,0.89]
[1728112114849,0.4157,2423.0,2422.7,0.89]
[1728112115045,0.89,2423.2,2422.8,1.1152]
[1728112115249,1.17886,2423.2,2422.8,1.5301]
[1728112115448,0.89,2423.2,2422.8,1.2412]
[1728112115654,0.28887,2423.1,2422.8,1.2412]
[1728112116759,0.28888,2423.0,2422.8,1.2412]
[1728112117359,0.28887,2423.1,2422.8,1.2412]
[1728112118161,0.89,2422.9,2422.8,1.2412]
[1728112122158,0.89,2423.0,2422.8,4.7379]
[1728112123056,0.89,2423.0,2422.8,4.449]
[1728112123859,1.17888,2423.0,2422.8,4.449]
[1728112124464,0.28888,2423.0,2422.8,4.449]
[1728112124662,0.89,2422.9,2422.8,4.449]
[1728112128874,0.89,2422.9,2422.8,1.2412]
[1728112132267,1.17889,2422.9,2422.8,1.2412]
[1728112132466,1.56659,2422.9,2422.8,1.2412]
[1728112132673,1.2777,2422.9,2422.8,1.2412]
[1728112133173,1.2777,2422.9,2422.8,1.5301]
[1728112134065,1.2777,2422.9,2422.8,1.2412]
[1728112134758,1.56659,2422.9,2422.8,1.2412]
[1728112135955,1.56659,2422.9,2422.8,0.8195]
[1728112136264,1.56659,2422.9,2422.7,3.49671]
[1728112136265,1.2777,2422.9,2422.7,3.2078]
[1728112136564,1.5666,2422.9,2422.7,3.49671]
[1728112137065,1.5666,2422.9,2422.7,0.28891]
[1728112137459,1.5666,2422.9,2422.6,1.54022]
[1728112137660,1.5666,2422.9,2422.7,0.57059902]
[1728112137860,1.5666,2422.9,2422.6,1.54022]
[1728112138061,1.5666,2422.9,2422.7,0.5706009]
[1728112138260,1.5666,2422.9,2422.6,1.54022]
[1728112138465,1.5666,2422.9,2422.7,0.57061914]
[1728112138674,1.5666,2422.9,2422.6,1.54022]
[1728112138968,1.5666,2422.9,2422.7,0.85953467]
[1728112139177,1.5666,2422.9,2422.7,0.28891]
[1728112141464,1.2777,2422.9,2422.8,0.2889]
[1728112143265,1.2777,2422.9,2422.6,1.2513]
[1728112143475,0.89,2422.7,2422.6,1.11822]
[1728112143671,0.89,2422.7,2422.6,1.68881217]
[1728112146275,0.89,2422.7,2422.6,1.11822]
[1728112146477,0.89,2422.7,2422.6,1.68881487]
[1728112147979,0.89,2422.8,2422.7,0.28891]
[1728112148172,0.3877,2422.9,2422.8,0.2889]
[1728112148679,0.89,2423.0,2422.7,3.6115]
[1728112148975,0.89,2423.0,2422.9,0.28889]
[1728112151274,1.17888,2423.0,2422.8,0.28889]
[1728112151479,0.4103,2422.9,2422.7,3.6115]
[1728112151674,0.89,2422.8,2422.7,3.2078]
[1728112151975,1.6874,2422.8,2422.7,3.7783803]
[1728112153470,1.6874,2422.8,2422.7,4.0672903]
[1728112153982,1.6874,2422.8,2422.7,0.8594903]
[1728112155080,0.89,2422.8,2422.7,0.8594903]
[1728112155278,0.89,2422.8,2422.7,1.2538903]
[1728112155497,0.4103,2422.9,2422.7,1.2538903]
[1728112155498,0.4103,2422.9,2422.8,0.2889]
[1728112155781,0.89,2423.0,2422.9,0.28889]
[1728112155975,0.89,2423.0,2422.9,0.85965803]
[1728112156174,0.89,2423.0,2422.9,0.28889]
[1728112156375,0.89,2423.0,2422.9,0.85962213]
[1728112158178,0.89,2423.0,2422.9,1.77365546]
[1728112159478,0.89,2423.0,2422.9,0.28889]
[1728112159679,0.89,2423.0,2422.9,1.77500843]
[1728112160178,0.89,2423.0,2422.9,2.91934781]
[1728112162977,0.89,2423.0,2422.9,2.63045781]
[1728112164785,1.17888,2423.0,2422.9,2.63045781]
[1728112165082,1.17888,2423.0,2422.9,1.48611843]
[1728112166272,1.17888,2423.0,2422.9,1.48773405]
[1728112166679,5.30608,2423.0,2422.9,1.48773405]
[1728112167783,5.30608,2423.0,2422.9,0.5722054]
[1728112167978,5.30608,2423.0,2422.9,1.48787214]
[1728112168380,11.30608,2423.0,2422.9,1.48787214]
[1728112168575,11.30608,2423.0,2422.9,0.5722054]
[1728112169283,11.0172,2423.0,2422.6,3.2078]
[1728112169598,1.17891,2422.7,2422.6,3.2078]
[1728112169778,1.17891,2422.7,2422.6,4.12354283]
[1728112169979,1.17891,2422.7,2422.6,4.69586879]
[1728112170382,1.17891,2422.7,2422.6,5.26820624]
[1728112170383,0.89,2422.7,2422.6,5.26820624]
[1728112170787,5.30691,2422.7,2422.6,5.26820624]
[1728112171092,1.699,2422.7,2422.6,5.26820624]
[1728112171283,5.827,2422.7,2422.6,5.26820624]
[1728112171684,1.699,2422.7,2422.6,5.26820624]
[1728112172975,1.98791,2422.7,2422.6,3.78013745]
[1728112173289,1.98791,2422.7,2422.6,4.35219091]
[1728112173489,1.98791,2422.7,2422.6,5.26747646]
[1728112173888,1.98791,2422.7,2422.6,2.05967646]
[1728112174390,1.699,2422.7,2422.6,2.05967646]
[1728112174890,0.89,2422.7,2422.6,2.05967646]
[1728112176294,0.89,2422.7,2422.6,0.57233745]
[1728112176484,0.89,2422.7,2422.5,0.68673]
[1728112176698,0.89,2422.7,2422.6,0.5718612]
[1728112176886,0.89,2422.7,2422.6,1.48683912]
[1728112177077,5.018,2422.7,2422.6,1.48683912]
[1728112177283,1.17891,2422.7,2422.6,1.48683912]
[1728112179397,1.17891,2422.7,2422.6,0.5718612]
[1728112179398,5.30691,2422.7,2422.6,0.5718612]
[1728112179589,5.30691,2422.7,2422.4,3.2078]
[1728112179590,0.28894,2422.5,2422.4,3.2078]
[1728112179786,1.17894,2422.5,2422.4,3.7796565]
[1728112180291,1.17894,2422.5,2422.4,3.2078]
[1728112180792,0.89,2422.5,2422.4,3.77956149]
[1728112181195,1.2912,2422.5,2422.4,3.77956149]
[1728112181693,1.2912,2422.5,2422.4,4.20446149]
[1728112182197,1.58014,2422.5,2422.4,4.20446149]
[1728112183291,1.58014,2422.5,2422.1,0.096]
[1728112183292,0.28897,2422.2,2422.1,0.096]
[1728112183493,0.89,2422.2,2422.1,0.70049]
[1728112183689,0.89,2422.2,2422.1,1.27212078]
[1728112184298,1.2782,2422.2,2422.1,1.27212078]
[1728112184992,1.56717,2422.2,2422.1,0.57163078]
[1728112185591,1.56717,2422.2,2422.0,0.3883]
[1728112185797,1.56717,2422.2,2422.1,0.57137201]
[1728112186501,1.56717,2422.2,2422.0,0.3883]
[1728112187400,1.2782,2422.2,2422.1,0.57116489]
[1728112187597,1.2782,2422.2,2422.1,0.28899]
[1728112189599,0.89,2422.2,2422.1,0.28899]
[1728112191101,0.89,2422.2,2422.1,0.85990713]
[1728112191301,0.89,2422.2,2422.1,0.28899]
[1728112191502,0.89,2422.3,2422.2,0.28896]
[1728112192998,1.17897,2422.3,2422.1,0.28898]
[1728112193201,0.89,2422.2,2422.1,0.28898]
[1728112201816,0.4202,2422.4,2422.2,0.28896]
[1728112202112,1.17892,2422.7,2422.5,0.28894]
[1728112202312,0.89,2422.7,2422.6,0.4091]
[1728112202505,0.89,2422.7,2422.6,0.826]
[1728112203004,1.2806,2422.7,2422.6,0.826]
[1728112203512,1.2806,2422.7,2422.6,1.11493]
[1728112203701,5.69752,2422.7,2422.4,3.49675]
[1728112204011,0.89,2422.5,2422.1,3.3038]
[1728112204203,1.50055,2422.4,2422.2,0.57066685]
[1728112204410,0.89,2422.3,2422.1,1.53408]
[1728112204613,0.89,2422.3,2422.2,0.57079548]
[1728112205009,1.17896,2422.3,2422.2,0.57079548]
[1728112205203,1.17896,2422.3,2422.1,0.8272]
[1728112205404,1.17896,2422.3,2422.1,1.11619]
[1728112205706,1.17897,2422.3,2422.1,0.8272]
[1728112206609,1.17897,2422.3,2422.0,0.28899]
[1728112206809,1.2116,2422.4,2422.0,0.28899]
[1728112206810,0.89,2422.1,2422.0,0.28899]
[1728112207018,0.89,2422.1,2422.0,0.86005434]
[1728112208212,0.89,2422.2,2422.1,0.28897]
[1728112208409,0.89,2422.2,2422.1,0.86003434]
[1728112208715,1.50055,2422.4,2422.1,0.86003434]
[1728112208716,0.89,2422.3,2422.1,0.86003434]
[1728112208914,0.89,2422.3,2422.2,0.3894]
[1728112209114,0.89,2422.3,2422.2,0.8015]
[1728112209421,0.89,2422.3,2422.2,1.66167212]
[1728112209710,0.89,2422.3,2422.2,1.66165951]
[1728112211321,0.89,2422.3,2422.2,1.37268951]
[1728112211322,1.17896,2422.3,2422.2,1.37268951]
[1728112211614,1.99976,2422.3,2422.2,0.57118951]
[1728112214614,1.7108,2422.3,2422.2,0.86015951]
[1728112215118,1.7108,2422.3,2422.2,0.57118951]
[1728112215518,0.89,2422.3,2422.2,0.57118951]
[1728112215820,0.89,2422.3,2422.2,0.98116656]
[1728112217515,1.17896,2422.3,2422.2,0.98116656]
[1728112217721,1.17896,2422.3,2422.2,0.57206656]
[1728112218118,0.89,2422.3,2422.2,0.86103656]
[1728112218724,0.89,2422.3,2422.2,1.77652352]
[1728112219022,0.89,2422.3,2422.2,1.48755352]
[1728112219217,0.89,2422.3,2422.2,1.48754869]
[1728112220217,1.3091,2422.4,2422.3,0.28896]
[1728112220412,1.3091,2422.4,2422.3,0.86102656]
[1728112220924,1.3091,2422.4,2422.3,1.77655247]
[1728112222115,1.59805,2422.4,2422.3,1.48759247]
[1728112222316,1.59805,2422.4,2422.2,0.28897]
[1728112222517,1.59805,2422.4,2422.3,1.48817465]
[1728112223122,1.3091,2422.4,2422.3,1.48817465]
[1728112223717,1.59805,2422.4,2422.3,1.48817465]
[1728112224017,5.72605,2422.4,2422.3,1.48817465]
[1728112224230,5.72605,2422.4,2422.3,1.48839606]
[1728112225228,5.72605,2422.4,2422.3,0.57237486]
[1728112228829,5.72605,2422.4,2422.0,0.28899]
[1728112228830,0.28897,2422.3,2422.0,0.28899]
[1728112229129,0.89,2422.1,2422.0,0.28899]
[1728112229633,0.89,2422.1,2422.0,2.92485235]
[1728112231328,1.3126,2422.1,2422.0,2.92485235]
[1728112235329,1.3126,2422.1,2422.0,0.28899]
[1728112235526,1.3126,2422.1,2422.0,2.92589342]
[1728112238630,1.3126,2422.1,2422.0,0.28899]
[1728112238829,1.3126,2422.1,2422.0,2.92576152]
[1728112239035,1.3126,2422.1,2422.0,2.63677152]
[1728112239238,1.3126,2422.1,2422.0,2.63678422]
[1728112240328,1.3126,2422.1,2422.0,2.92578422]
[1728112241228,1.3126,2422.1,2422.0,1.49034912]
[1728112243033,6.14669,2422.1,2422.0,0.5732112]
[1728112243336,1.767,2422.2,2422.1,0.28899]
[1728112243536,1.767,2422.2,2422.1,1.77928684]
[1728112243739,1.767,2422.2,2422.1,1.49029684]
[1728112243938,0.89,2422.2,2422.1,1.49029684]
[1728112248338,0.89,2422.2,2422.0,0.289]
[1728112248534,0.89,2422.2,2422.1,1.49002543]
[1728112249043,0.89,2422.2,2422.1,0.573097]
[1728112249336,0.89,2422.2,2422.1,1.4900522]
[1728112255142,0.89,2422.2,2421.9,1.47391]
[1728112255345,0.89,2422.2,2422.1,0.91697057]
[1728112255545,0.89,2422.2,2422.1,1.49010266]
[1728112256044,1.17897,2422.2,2422.1,1.49010266]
[1728112258840,0.89,2422.2,2422.1,1.49024354]
[1728112259442,1.17897,2422.2,2422.1,1.49024354]
[1728112260953,1.17897,2422.2,2421.9,2.25629044]
[1728112261251,1.17897,2422.2,2421.9,2.54530044]
[1728112261252,0.89,2422.0,2421.9,2.54530044]